[Event "Sempre più Rapidamente"]
[Site "Chess.com"]
[Date "2020.04.12"]
[Round "5"]
[White "ottovolante"]
[Black "lionblu1"]
[Result "0-1"]
[WhiteElo "992"]
[BlackElo "1470"]
[TimeControl "720+3"]
[EndTime "7:47:48 PDT"]
[Termination "lionblu1 ha vinto per scaccomatto"]

1. e4 {[%clk 0:12:02.9]} 1... c5 {[%clk 0:12:00.5]} 2. Bc4 {[%clk 0:11:59.6]}
2... e6 {[%clk 0:12:00.7]} 3. Nf3 {[%clk 0:11:57.5]} 3... a6 {[%clk 0:11:58.1]}
4. e5 {[%clk 0:11:58.8]} 4... d5 {[%clk 0:11:55.6]} 5. Bd3 {[%clk 0:11:58.9]}
5... Nc6 {[%clk 0:11:50.1]} 6. c3 {[%clk 0:11:59.2]} 6... Nge7 {[%clk
0:11:46.3]} 7. Bc2 {[%clk 0:11:57.8]} 7... h5 {[%clk 0:11:36.7]} 8. Ba4 {[%clk
0:11:53.9]} 8... b5 {[%clk 0:11:35.7]} 9. Bc2 {[%clk 0:11:51.9]} 9... Bb7 {[%clk
0:11:33.8]} 10. d3 {[%clk 0:11:43.9]} 10... g6 {[%clk 0:11:27.5]} 11. Bg5 {[%clk
0:11:41.6]} 11... Bh6 {[%clk 0:11:24.6]} 12. Bf6 {[%clk 0:11:41.8]} 12... Rg8
{[%clk 0:11:10.8]} 13. h4 {[%clk 0:11:42.8]} 13... Bg7 {[%clk 0:11:06.6]} 14.
Bxg7 {[%clk 0:11:35.3]} 14... Rxg7 {[%clk 0:11:07.6]} 15. Qd2 {[%clk 0:11:31.8]}
15... Nf5 {[%clk 0:11:05.8]} 16. d4 {[%clk 0:11:23.3]} 16... cxd4 {[%clk
0:11:00.5]} 17. Bxf5 {[%clk 0:11:24.4]} 17... gxf5 {[%clk 0:10:52.3]} 18. cxd4
{[%clk 0:11:21.7]} 18... Qa5 {[%clk 0:10:12.7]} 19. Qb4 {[%clk 0:11:13.8]} 19...
Qxb4+ {[%clk 0:10:11.6]} 20. Nc3 {[%clk 0:10:53.7]} 20... Qxb2 {[%clk
0:10:11.5]} 21. Nxd5 {[%clk 0:10:51.7]} 21... Qxa1+ {[%clk 0:10:09.6]} 22. Ke2
{[%clk 0:10:52.4]} 22... Qxa2+ {[%clk 0:09:51.1]} 23. Nd2 {[%clk 0:10:53.2]}
23... Qxd5 {[%clk 0:09:50.4]} 24. g4 {[%clk 0:10:55]} 24... Qxh1 {[%clk
0:09:46]} 25. f4 {[%clk 0:10:56.4]} 25... Nxd4+ {[%clk 0:09:44.4]} 26. Kf2
{[%clk 0:10:54.7]} 26... Qg2+ {[%clk 0:09:41.3]} 27. Ke1 {[%clk 0:10:53.5]}
27... Qe2# {[%clk 0:09:38.6]} 0-1

[Event "Sempre più Rapidamente"]
[Site "Chess.com"]
[Date "2020.04.12"]
[Round "5"]
[White "Ollarov"]
[Black "GuGe14"]
[Result "1-0"]
[WhiteElo "1945"]
[BlackElo "1831"]
[TimeControl "720+3"]
[EndTime "7:50:02 PDT"]
[Termination "Ollarov ha vinto per abbandono"]

1. e4 {[%clk 0:12:02.9]} 1... c6 {[%clk 0:12:00.3]} 2. d4 {[%clk 0:12:04.3]}
2... d5 {[%clk 0:12:02.1]} 3. exd5 {[%clk 0:12:05.6]} 3... cxd5 {[%clk 0:12:04]}
4. c4 {[%clk 0:12:07.6]} 4... Nf6 {[%clk 0:12:03.4]} 5. Nc3 {[%clk 0:12:09.5]}
5... Nc6 {[%clk 0:11:33.3]} 6. cxd5 {[%clk 0:12:09]} 6... Nxd5 {[%clk
0:11:32.3]} 7. Bc4 {[%clk 0:12:11.5]} 7... Be6 {[%clk 0:11:05.4]} 8. Bb3 {[%clk
0:11:59.5]} 8... g6 {[%clk 0:10:33.2]} 9. Nf3 {[%clk 0:11:58.6]} 9... Bg7 {[%clk
0:10:34.8]} 10. O-O {[%clk 0:12:00]} 10... Nxc3 {[%clk 0:09:54.3]} 11. bxc3
{[%clk 0:11:48.3]} 11... Bd5 {[%clk 0:09:54.3]} 12. Bg5 {[%clk 0:11:42.9]} 12...
Qa5 {[%clk 0:09:35.9]} 13. Rc1 {[%clk 0:11:36.1]} 13... Bxf3 {[%clk 0:09:28.2]}
14. Qxf3 {[%clk 0:11:31.6]} 14... Qxg5 {[%clk 0:09:29.5]} 15. Qxf7+ {[%clk
0:11:27.5]} 15... Kd7 {[%clk 0:09:18.6]} 16. Qxg7 {[%clk 0:11:27.3]} 16... Na5
{[%clk 0:08:55.8]} 17. Ba4+ {[%clk 0:11:21.6]} 17... b5 {[%clk 0:08:46.1]} 18.
f4 {[%clk 0:11:14.3]} 18... Qd5 {[%clk 0:08:03.5]} 19. Rce1 {[%clk 0:11:10.5]}
19... Rae8 {[%clk 0:07:13.8]} 20. Re5 {[%clk 0:10:57.2]} 20... Qc4 {[%clk
0:06:56.9]} 21. Bxb5+ {[%clk 0:10:48.4]} 1-0

[Event "Sempre più Rapidamente"]
[Site "Chess.com"]
[Date "2020.04.12"]
[Round "5"]
[White "Delsoldato03"]
[Black "MartinoMontepietra"]
[Result "1-0"]
[WhiteElo "1089"]
[BlackElo "733"]
[TimeControl "720+3"]
[EndTime "7:50:05 PDT"]
[Termination "Delsoldato03 ha vinto per scaccomatto"]

1. e4 {[%clk 0:12:02.9]} 1... g6 {[%clk 0:11:50.2]} 2. d4 {[%clk 0:12:03]} 2...
Bg7 {[%clk 0:11:52.2]} 3. Nf3 {[%clk 0:12:02]} 3... Nf6 {[%clk 0:11:54.2]} 4. e5
{[%clk 0:11:51.7]} 4... Ne4 {[%clk 0:11:42.7]} 5. Bd3 {[%clk 0:11:39.5]} 5... f5
{[%clk 0:11:24.5]} 6. O-O {[%clk 0:11:22.2]} 6... d5 {[%clk 0:11:20.7]} 7. exd6
{[%clk 0:11:17.4]} 7... cxd6 {[%clk 0:11:03.5]} 8. Nbd2 {[%clk 0:10:53.5]} 8...
Nxd2 {[%clk 0:10:56.3]} 9. Bxd2 {[%clk 0:10:50.8]} 9... e5 {[%clk 0:10:53.9]}
10. Bg5 {[%clk 0:10:30.8]} 10... Qd7 {[%clk 0:10:43.8]} 11. dxe5 {[%clk
0:10:19]} 11... O-O {[%clk 0:10:22.2]} 12. exd6 {[%clk 0:09:59.8]} 12... Qxd6
{[%clk 0:10:10.3]} 13. Bc4+ {[%clk 0:10:00.9]} 13... Kh8 {[%clk 0:09:42.9]} 14.
Qxd6 {[%clk 0:10:00]} 14... a5 {[%clk 0:09:23]} 15. Rfe1 {[%clk 0:09:38.1]}
15... Ra6 {[%clk 0:09:20.3]} 16. Bxa6 {[%clk 0:09:36.4]} 16... Nxa6 {[%clk
0:09:16.5]} 17. Ne5 {[%clk 0:09:17]} 17... a4 {[%clk 0:08:35.3]} 18. Qd5 {[%clk
0:09:09.1]} 18... Rg8 {[%clk 0:08:18.4]} 19. Nf7# {[%clk 0:09:07.7]} 1-0

[Event "Sempre più Rapidamente"]
[Site "Chess.com"]
[Date "2020.04.12"]
[Round "5"]
[White "mr6701"]
[Black "Carbon"]
[Result "1-0"]
[WhiteElo "1646"]
[BlackElo "1784"]
[TimeControl "720+3"]
[EndTime "7:52:23 PDT"]
[Termination "mr6701 ha vinto per abbandono"]

1. e4 {[%clk 0:12:02.9]} 1... e6 {[%clk 0:12:00.4]} 2. d4 {[%clk 0:12:04.3]}
2... d5 {[%clk 0:12:01.1]} 3. Nc3 {[%clk 0:12:06.2]} 3... Nf6 {[%clk 0:12:00.7]}
4. Bg5 {[%clk 0:12:07.9]} 4... Be7 {[%clk 0:11:59.5]} 5. e5 {[%clk 0:12:09.8]}
5... Nfd7 {[%clk 0:11:59.9]} 6. h4 {[%clk 0:12:11.9]} 6... Nc6 {[%clk
0:11:52.2]} 7. Qg4 {[%clk 0:12:08.5]} 7... f5 {[%clk 0:11:21.8]} 8. Qh5+ {[%clk
0:11:28.5]} 8... g6 {[%clk 0:10:50.3]} 9. Qh6 {[%clk 0:11:25.6]} 9... Kf7 {[%clk
0:10:43.9]} 10. Nf3 {[%clk 0:11:21.1]} 10... Qf8 {[%clk 0:10:37.5]} 11. Qxf8+
{[%clk 0:11:17]} 11... Kxf8 {[%clk 0:10:03]} 12. Nb5 {[%clk 0:11:11.5]} 12...
Bb4+ {[%clk 0:09:49.9]} 13. c3 {[%clk 0:11:12.7]} 13... Ba5 {[%clk 0:09:50.9]}
14. O-O-O {[%clk 0:10:29.5]} 14... a6 {[%clk 0:09:47.9]} 15. Na3 {[%clk
0:10:21.6]} 15... h6 {[%clk 0:09:47.5]} 16. Bf4 {[%clk 0:10:14.7]} 16... b5
{[%clk 0:09:40.5]} 17. Bd3 {[%clk 0:09:37.6]} 17... Bb7 {[%clk 0:09:23.7]} 18.
g4 {[%clk 0:09:30.7]} 18... Kf7 {[%clk 0:09:13.6]} 19. gxf5 {[%clk 0:09:31.9]}
19... gxf5 {[%clk 0:09:09]} 20. h5 {[%clk 0:09:30.9]} 20... Rag8 {[%clk
0:08:41.9]} 21. Nh4 {[%clk 0:09:25.1]} 21... Rg4 {[%clk 0:08:19.2]} 22. Ng6
{[%clk 0:09:19.6]} 22... Rh7 {[%clk 0:08:18.8]} 23. Be2 {[%clk 0:09:20.8]} 23...
Rxg6 {[%clk 0:08:09.4]} 24. hxg6+ {[%clk 0:09:22]} 24... Kxg6 {[%clk 0:08:11]}
25. Rdg1+ {[%clk 0:09:19.4]} 25... Kf7 {[%clk 0:08:09]} 26. Rxh6 {[%clk
0:09:20]} 26... Rxh6 {[%clk 0:08:07.7]} 27. Bxh6 {[%clk 0:09:20.9]} 27... b4
{[%clk 0:07:29.2]} 28. Nb1 {[%clk 0:09:20.6]} 28... bxc3 {[%clk 0:07:16.3]} 29.
bxc3 {[%clk 0:09:21.4]} 29... Ne7 {[%clk 0:07:12]} 30. Bh5+ {[%clk 0:09:20]} 1-0

[Event "Sempre più Rapidamente"]
[Site "Chess.com"]
[Date "2020.04.12"]
[Round "5"]
[White "sirmale49"]
[Black "ferrariand"]
[Result "0-1"]
[WhiteElo "1396"]
[BlackElo "1592"]
[TimeControl "720+3"]
[EndTime "7:53:07 PDT"]
[Termination "ferrariand ha vinto per abbandono"]

1. f4 {[%clk 0:12:02.9]} 1... d5 {[%clk 0:11:51.8]} 2. Nf3 {[%clk 0:12:01.3]}
2... Nf6 {[%clk 0:11:46.8]} 3. g3 {[%clk 0:12:00]} 3... Bf5 {[%clk 0:11:36.2]}
4. Bg2 {[%clk 0:11:49.1]} 4... Nc6 {[%clk 0:11:28]} 5. O-O {[%clk 0:11:43.5]}
5... e6 {[%clk 0:11:29.2]} 6. e3 {[%clk 0:11:41.3]} 6... Bc5 {[%clk 0:11:27.8]}
7. d3 {[%clk 0:11:38.6]} 7... O-O {[%clk 0:11:28.1]} 8. a3 {[%clk 0:11:14.8]}
8... Re8 {[%clk 0:11:25.1]} 9. Ne5 {[%clk 0:11:08.8]} 9... Bg6 {[%clk
0:11:05.2]} 10. d4 {[%clk 0:10:53]} 10... Bb6 {[%clk 0:11:00.5]} 11. Nc3 {[%clk
0:10:54.5]} 11... Bh5 {[%clk 0:10:38.9]} 12. g4 {[%clk 0:10:50.9]} 12... Bg6
{[%clk 0:10:29.6]} 13. h4 {[%clk 0:10:23.9]} 13... h6 {[%clk 0:10:27.4]} 14. Na4
{[%clk 0:09:47.7]} 14... Be4 {[%clk 0:10:04.7]} 15. g5 {[%clk 0:09:06.7]} 15...
Bxg2 {[%clk 0:10:00.6]} 16. Kxg2 {[%clk 0:09:05.4]} 16... Ne4 {[%clk 0:09:28.2]}
17. Qg4 {[%clk 0:08:41.6]} 17... Nxe5 {[%clk 0:09:19]} 18. fxe5 {[%clk
0:08:34.2]} 18... hxg5 {[%clk 0:09:16]} 19. h5 {[%clk 0:08:11.9]} 19... Qd7
{[%clk 0:08:49.4]} 20. Nxb6 {[%clk 0:08:04]} 20... axb6 {[%clk 0:08:49.7]} 21.
Rh1 {[%clk 0:07:44.8]} 21... Qa4 {[%clk 0:08:44.9]} 22. c3 {[%clk 0:07:37.9]}
22... Qc2+ {[%clk 0:08:43.9]} 0-1

[Event "Sempre più Rapidamente"]
[Site "Chess.com"]
[Date "2020.04.12"]
[Round "5"]
[White "crippo"]
[Black "sergiodone"]
[Result "1-0"]
[WhiteElo "1588"]
[BlackElo "1200"]
[TimeControl "720+3"]
[EndTime "8:07:22 PDT"]
[Termination "crippo ha vinto per tempo"]

1. e4 {[%clk 0:12:02.9]} 1... c5 {[%clk 0:11:40.4]} 2. Nf3 {[%clk 0:12:04]} 2...
d6 {[%clk 0:11:41.3]} 3. Nc3 {[%clk 0:12:06]} 3... a6 {[%clk 0:11:40.9]} 4. a4
{[%clk 0:12:07.1]} 4... e6 {[%clk 0:11:42.5]} 5. Bc4 {[%clk 0:12:08.3]} 5... Be7
{[%clk 0:11:44]} 6. d3 {[%clk 0:12:08.5]} 6... Qc7 {[%clk 0:11:45.3]} 7. Bf4
{[%clk 0:12:07.7]} 7... Nc6 {[%clk 0:11:42.8]} 8. O-O {[%clk 0:12:07.2]} 8...
Nf6 {[%clk 0:11:42.9]} 9. Re1 {[%clk 0:12:07]} 9... O-O {[%clk 0:11:03.6]} 10.
Bg5 {[%clk 0:12:06.9]} 10... Ng4 {[%clk 0:10:26]} 11. Bf4 {[%clk 0:12:01.2]}
11... Nge5 {[%clk 0:10:22.8]} 12. Ba2 {[%clk 0:11:57]} 12... Ng6 {[%clk
0:10:07.3]} 13. Bg3 {[%clk 0:11:57.4]} 13... Nce5 {[%clk 0:09:59.6]} 14. Nxe5
{[%clk 0:11:58.3]} 14... dxe5 {[%clk 0:10:00.6]} 15. f4 {[%clk 0:12:00]} 15...
Bd7 {[%clk 0:09:41.1]} 16. fxe5 {[%clk 0:12:00.5]} 16... Nxe5 {[%clk 0:09:40.7]}
17. Rf1 {[%clk 0:11:58.9]} 17... Bd6 {[%clk 0:09:42.1]} 18. Qh5 {[%clk
0:11:59.2]} 18... g6 {[%clk 0:09:26]} 19. Qe2 {[%clk 0:11:59.3]} 19... c4 {[%clk
0:09:14.2]} 20. d4 {[%clk 0:11:58.2]} 20... Nc6 {[%clk 0:09:00.1]} 21. Rad1
{[%clk 0:11:51.4]} 21... Bxg3 {[%clk 0:09:00.9]} 22. hxg3 {[%clk 0:11:53.1]}
22... Qxg3 {[%clk 0:08:53.3]} 23. Rf3 {[%clk 0:11:53.8]} 23... Qg5 {[%clk
0:08:50.3]} 24. Bxc4 {[%clk 0:11:52.9]} 24... Rad8 {[%clk 0:08:38.4]} 25. d5
{[%clk 0:11:51.7]} 25... Ne5 {[%clk 0:08:35.6]} 26. Ba2 {[%clk 0:11:46.2]} 26...
Nxf3+ {[%clk 0:08:37]} 27. Qxf3 {[%clk 0:11:48.3]} 27... exd5 {[%clk 0:08:33.9]}
28. Rxd5 {[%clk 0:11:40.9]} 28... Qg4 {[%clk 0:08:21]} 29. Qd3 {[%clk
0:11:36.4]} 29... h5 {[%clk 0:07:57]} 30. Rd6 {[%clk 0:11:25.8]} 30... h4 {[%clk
0:07:49.6]} 31. Nd5 {[%clk 0:11:08]} 31... Qg3 {[%clk 0:06:37.3]} 32. Qxg3
{[%clk 0:10:30.1]} 32... hxg3 {[%clk 0:06:37.5]} 33. Nf6+ {[%clk 0:10:32.1]}
33... Kg7 {[%clk 0:06:30]} 34. Nxd7 {[%clk 0:10:33.9]} 34... Rfe8 {[%clk
0:06:12.5]} 35. e5 {[%clk 0:10:33.4]} 35... Re7 {[%clk 0:05:47.5]} 36. e6 {[%clk
0:10:13.6]} 36... fxe6 {[%clk 0:05:13.6]} 37. Bxe6 {[%clk 0:10:12.9]} 37... Rc8
{[%clk 0:05:08.6]} 38. c3 {[%clk 0:10:06.9]} 38... Rc4 {[%clk 0:05:02.6]} 39.
Kf1 {[%clk 0:07:48.8]} 39... Re4 {[%clk 0:05:00.3]} 40. Nc5 {[%clk 0:07:46.5]}
40... Rf4+ {[%clk 0:04:58.2]} 41. Ke1 {[%clk 0:07:46.3]} 41... b5 {[%clk
0:04:56.3]} 42. axb5 {[%clk 0:07:45.4]} 42... axb5 {[%clk 0:04:57.1]} 43. Rd7
{[%clk 0:07:34.1]} 43... Rxd7 {[%clk 0:04:47]} 44. Bxd7 {[%clk 0:07:35]} 44...
Rf2 {[%clk 0:04:46.9]} 45. Bc6 {[%clk 0:07:36]} 45... Rxb2 {[%clk 0:04:47.7]}
46. Nd3 {[%clk 0:07:28.2]} 46... Rc2 {[%clk 0:04:37.6]} 47. Kd1 {[%clk
0:07:28.7]} 47... Rxc3 {[%clk 0:04:39.2]} 48. Kd2 {[%clk 0:07:30.5]} 48... Rb3
{[%clk 0:04:34.3]} 49. Kc2 {[%clk 0:07:28]} 49... Ra3 {[%clk 0:04:34.2]} 50.
Bxb5 {[%clk 0:07:28.1]} 50... Ra2+ {[%clk 0:04:32.3]} 51. Nb2 {[%clk 0:07:29]}
51... Ra5 {[%clk 0:04:25.9]} 52. Bd3 {[%clk 0:07:27.1]} 52... Rc5+ {[%clk
0:04:09.2]} 53. Kd2 {[%clk 0:07:27.9]} 53... Kh6 {[%clk 0:04:07.2]} 54. Nd1
{[%clk 0:07:28.6]} 54... Kg5 {[%clk 0:04:05.6]} 55. Ne3 {[%clk 0:07:30.4]} 55...
Kf4 {[%clk 0:03:59.2]} 56. Bxg6 {[%clk 0:07:30.2]} 56... Rg5 {[%clk 0:03:29.9]}
57. Bd3 {[%clk 0:07:29.5]} 57... Ra5 {[%clk 0:03:14.6]} 58. Nf1 {[%clk
0:07:29.6]} 58... Ra2+ {[%clk 0:03:09.8]} 59. Bc2 {[%clk 0:07:31.6]} 59... Ra1
{[%clk 0:03:03.4]} 60. Ne3 {[%clk 0:07:29.7]} 60... Ra8 {[%clk 0:02:55.7]} 61.
Nf1 {[%clk 0:07:22.6]} 61... Re8 {[%clk 0:02:51]} 62. Bd3 {[%clk 0:07:21.5]}
62... Re7 {[%clk 0:02:43.7]} 63. Be2 {[%clk 0:07:17.7]} 63... Rd7+ {[%clk
0:02:41.1]} 64. Ke1 {[%clk 0:07:17.7]} 64... Rd6 {[%clk 0:02:38.6]} 65. Nd2
{[%clk 0:07:15.6]} 65... Rb6 {[%clk 0:02:26.1]} 66. Bd1 {[%clk 0:07:10.4]} 66...
Re6+ {[%clk 0:02:20.7]} 67. Kf1 {[%clk 0:07:10.5]} 67... Re3 {[%clk 0:02:11.2]}
68. Nc4 {[%clk 0:07:09.1]} 68... Rc3 {[%clk 0:01:46.5]} 69. Nd6 {[%clk
0:07:02.8]} 69... Rc1 {[%clk 0:01:39.5]} 70. Ke2 {[%clk 0:07:03.4]} 70... Ra1
{[%clk 0:01:32.8]} 71. Nc4 {[%clk 0:07:01.1]} 71... Ra2+ {[%clk 0:01:29]} 72.
Nd2 {[%clk 0:06:59.8]} 72... Ra7 {[%clk 0:01:21.5]} 73. Nf3 {[%clk 0:06:56.8]}
73... Re7+ {[%clk 0:01:18.7]} 74. Kd3 {[%clk 0:06:57.1]} 74... Re3+ {[%clk
0:01:16]} 75. Kd2 {[%clk 0:06:57.9]} 75... Re7 {[%clk 0:01:05]} 76. Nd4 {[%clk
0:06:58.4]} 76... Rd7 {[%clk 0:00:57.6]} 77. Kc3 {[%clk 0:06:56.4]} 77... Rd6
{[%clk 0:00:46.9]} 78. Bf3 {[%clk 0:06:56.2]} 78... Ra6 {[%clk 0:00:35.9]} 79.
Ne2+ {[%clk 0:06:53]} 79... Ke3 {[%clk 0:00:24.4]} 80. Nxg3 {[%clk 0:06:54.8]}
80... Ra3+ {[%clk 0:00:14.1]} 81. Kb4 {[%clk 0:06:54.6]} 81... Ra1 {[%clk
0:00:12.4]} 82. Ne4 {[%clk 0:06:55.6]} 82... Kf4 {[%clk 0:00:05.2]} 83. Nd6
{[%clk 0:06:56.4]} 1-0